bitfinex-derivatives/quotes_ETHF0:USTF0_20251216
["timestamp","ask_amount","ask_price","bid_price","bid_amount"]
[1765851874416,0.451,2948.0,2947.9,1.49478054]
[1765851874716,1.48009103,2948.2,2948.1,1.4924]
[1765851875516,0.00509103,2948.2,2948.1,1.4924]
[1765851875909,0.00416423,2948.8,2948.7,1.4924]
[1765851878817,1.2103,2949.5,2949.4,1.4924]
[1765851879017,0.4359,2949.5,2949.4,1.4924]
[1765851879419,1.475,2949.4,2949.3,3.01010824]
[1765851879616,0.7744,2949.4,2949.3,3.01010824]
[1765851879818,1.47824526,2949.4,2949.3,3.01010824]
[1765851880220,0.77764526,2949.4,2949.3,3.01010824]
[1765851881218,1.47824526,2949.4,2949.3,2.28680824]
[1765851881614,1.47824526,2949.4,2949.3,0.7691]
[1765851881820,1.475,2949.3,2949.2,3.01010824]
[1765851882022,0.77764526,2949.4,2949.3,1.4924]
[1765851882235,0.00324526,2949.4,2949.3,1.4924]
[1765851885419,0.00324526,2949.4,2949.3,3.01010824]
[1765851885821,1.926,2950.5,2950.4,0.7691]
[1765851886020,1.926,2950.5,2950.4,2.28680824]
[1765851886320,1.475,2950.3,2950.2,0.00509103]
[1765851886724,1.4784224,2950.3,2950.2,0.00814124]
[1765851891525,1.475,2949.9,2949.8,1.51770824]
[1765851891825,0.451,2950.0,2949.6,2.28680824]
[1765851891826,1.475,2949.7,2949.6,2.28680824]
[1765851892428,1.926,2949.5,2949.4,1.51770824]
[1765851892629,1.926,2949.5,2949.4,2.29026805]
[1765851893030,1.926,2949.5,2949.4,3.01356805]
[1765851893529,1.926,2949.5,2949.4,2.29026805]
[1765851893932,1.926,2949.5,2949.4,0.00345981]
[1765851895828,1.475,2949.2,2949.1,0.00509103]
[1765851896724,2.99270824,2949.2,2949.1,0.00509103]
[1765851896926,2.99270824,2949.2,2949.1,0.00832727]
[1765851897534,1.475,2949.2,2949.1,0.00832727]
[1765851897828,1.475,2949.2,2948.0,2.27755332]
[1765851898035,1.475,2949.2,2948.0,5.18755332]
[1765851898428,1.475,2949.2,2948.0,0.47]
[1765851898734,1.926,2948.5,2948.4,1.4924]
[1765851898925,1.926,2948.5,2948.4,1.49533078]
[1765851898926,0.451,2948.5,2948.4,1.49533078]
[1765851899130,1.2254,2948.5,2948.4,1.49533078]
[1765851899832,1.926,2948.5,2948.4,1.49533078]
[1765851900428,1.2254,2948.5,2948.4,1.49533078]
[1765851900635,1.926,2949.0,2948.9,0.7691]
[1765851900836,1.926,2949.0,2948.4,0.00293078]
[1765851901835,1.926,2948.5,2948.4,0.00293078]
[1765851902634,1.926,2948.5,2948.4,1.47203078]
[1765851902935,1.2254,2948.5,2948.4,1.47203078]
[1765851903131,1.9757,2949.0,2948.4,0.00293078]
[1765851903333,1.9881,2948.5,2948.4,1.46043078]
[1765851903638,1.2303,2948.5,2948.4,1.46043078]
[1765851904028,1.9881,2948.5,2948.4,1.46043078]
[1765851904229,0.4634,2948.5,2948.4,1.46043078]
[1765851904532,1.9881,2948.5,2948.4,1.46043078]
[1765851904745,1.9881,2948.5,2948.4,0.00293078]
[1765851906135,1.5247,2947.6,2947.5,0.7575]
[1765851906436,1.9881,2947.5,2947.4,0.7575]
[1765851906739,1.9881,2947.5,2947.4,1.0275]
[1765851906939,1.9881,2947.5,2947.4,1.7275]
[1765851907141,1.99134491,2947.5,2947.4,1.73013152]
[1765851908333,0.46664491,2947.5,2947.4,1.73013152]
[1765851908535,1.23354491,2947.5,2947.4,1.73013152]
[1765851908740,1.99134491,2947.5,2947.4,1.73013152]
[1765851909135,0.46664491,2947.5,2947.4,1.73013152]
[1765851909335,0.00324491,2947.5,2947.4,1.73013152]
[1765851909530,1.99134491,2947.5,2947.4,0.27263152]
[1765851909738,1.99134491,2947.5,2947.4,1.03013152]
[1765851909939,1.99134491,2947.5,2947.4,0.00263152]
[1765851910939,0.46664491,2947.5,2947.4,1.46013152]
[1765851911144,0.00324491,2947.5,2947.4,1.46013152]
[1765851911442,1.99134491,2947.5,2947.4,1.46013152]
[1765851911644,1.99134491,2947.5,2947.4,0.00263152]
[1765851911844,1.99134491,2947.5,2947.4,0.76013152]
[1765851912143,1.99134491,2947.5,2947.4,1.46013152]
[1765851913043,1.99134491,2947.5,2947.4,0.76013152]
[1765851913746,1.99134491,2947.5,2947.4,1.46013152]
[1765851914445,0.00324491,2947.5,2947.4,1.46013152]
[1765851915446,0.77014491,2947.5,2947.4,1.46013152]
[1765851915749,1.99134491,2947.5,2947.4,1.46013152]
[1765851915945,1.23354491,2947.5,2947.4,1.46013152]
[1765851916445,1.99134491,2947.5,2947.4,0.00263152]
[1765851918147,1.99134491,2947.5,2947.4,0.76013152]
[1765851918649,1.99134491,2947.5,2946.4,2.27755332]
[1765851918650,1.5247,2947.3,2946.4,2.27755332]
[1765851918842,1.5247,2947.3,2946.4,5.01755332]
[1765851919042,1.5247,2947.3,2946.4,2.74]
[1765851919043,1.69437,2947.3,2946.4,2.74]
[1765851919246,1.9881,2946.5,2946.4,2.9575]
[1765851919546,0.4634,2947.0,2946.4,2.9575]
[1765851919752,0.4634,2947.0,2946.4,2.96700184]
[1765851921442,1.9881,2947.0,2946.9,1.52015802]
[1765851923850,1.9881,2947.0,2946.9,2.97765802]
[1765851924146,1.9881,2947.0,2946.9,2.27765802]
[1765851924545,1.9881,2947.0,2946.9,1.52015802]
[1765851924745,1.2303,2947.0,2946.9,2.97765802]
[1765851924940,1.9881,2947.0,2946.9,2.97765802]
[1765851925542,0.46664491,2947.5,2946.9,2.97765802]
[1765851925744,1.5247,2947.4,2947.3,2.27765802]
[1765851926345,0.63299,2948.5,2947.6,1.4575]
[1765851926550,2.15769,2948.5,2948.4,1.52015802]
[1765851927443,1.5247,2948.3,2948.2,0.00509103]
[1765851929648,1.5247,2948.3,2948.2,1.46259103]
[1765851930242,1.5247,2948.3,2948.2,0.00509103]
[1765851931145,1.5247,2948.3,2948.2,0.76259103]
[1765851931550,1.94865863,2948.5,2948.4,1.4894]
[1765851931951,1.19765863,2948.5,2948.4,1.4894]
[1765851932158,1.96045863,2948.5,2948.4,1.4894]
[1765851932752,1.19765863,2948.5,2948.4,1.4894]
[1765851932950,0.46675863,2948.5,2948.4,1.4894]
[1765851933156,1.21275863,2948.5,2948.4,1.4894]
[1765851933652,0.00335863,2948.5,2948.4,1.4894]
[1765851934055,0.00509103,2948.7,2948.6,1.4185]
[1765851934443,1.5088,2948.3,2948.2,1.42359103]
[1765851934650,1.51389103,2948.7,2948.6,1.4185]
[1765851934952,1.51389103,2948.7,2948.6,0.7056]
[1765851935148,1.5179084,2948.7,2948.6,1.42123269]
[1765851935651,0.0091084,2948.7,2948.6,1.42123269]
[1765851939561,1.9722,2949.5,2949.4,1.4185]
[1765851940260,1.9722,2949.5,2948.6,2.58466076]
[1765851940458,0.00509103,2949.3,2948.6,0.00273269]
[1765851940762,1.5088,2948.7,2948.6,0.00273269]
[1765851940963,1.5088,2948.7,2948.6,1.42123269]
[1765851941663,0.746,2948.7,2948.6,1.42123269]
[1765851942053,1.5088,2948.7,2948.6,1.42123269]
[1765851942559,0.746,2948.7,2948.6,1.42123269]
[1765851943163,1.943,2949.0,2948.9,0.7056]
[1765851943465,1.5088,2948.7,2948.6,1.42123269]
[1765851943852,1.5088,2948.7,2948.6,0.70833269]
[1765851944058,1.5088,2948.7,2948.6,0.00273269]
[1765851944565,1.5088,2948.7,2948.6,0.70833269]
[1765851944864,1.5088,2948.7,2948.6,1.42123269]
[1765851945667,0.746,2948.7,2948.6,1.42123269]
[1765851945862,1.5088,2948.7,2948.6,1.42123269]
[1765851946362,1.5088,2948.7,2948.6,0.00273269]
[1765851947564,1.5088,2948.7,2948.6,0.70833269]
[1765851947764,0.746,2948.7,2948.6,1.42123269]
[1765851948365,1.5088,2948.7,2948.6,0.00273269]
[1765851951359,1.5088,2948.7,2948.6,0.70833269]
[1765851951964,1.5088,2948.7,2948.6,1.42123269]
[1765851953865,1.5088,2948.7,2948.6,0.70833269]
[1765851955673,1.5088,2948.7,2948.6,1.42123269]
[1765851957178,1.943,2949.0,2948.9,1.4185]
[1765851957669,1.51389103,2949.3,2949.2,1.4185]
[1765851957859,0.00509103,2949.3,2949.2,1.4185]
[1765851958061,1.51389103,2949.3,2948.6,0.00273269]
[1765851959871,0.746,2948.7,2948.6,1.42123269]
[1765851960170,1.943,2949.0,2948.9,0.7056]
[1765851960366,1.943,2949.0,2948.9,1.4185]
[1765851961574,1.943,2949.0,2948.9,0.7056]
[1765851962574,1.1802,2949.0,2948.9,1.456]
[1765851963567,0.0027798,2949.5,2949.0,0.58246]
[1765851963773,1.1818,2950.5,2950.4,1.4519]
[1765851964468,0.436,2951.0,2950.4,4.03382807]
[1765851964672,1.92781833,2951.0,2950.4,2.5870191]
[1765851964869,0.7476,2950.5,2950.4,0.70659103]
[1765851965068,0.7476,2950.5,2950.4,1.45699103]
[1765851965069,1.9188,2950.5,2950.4,1.45699103]
[1765851965264,1.9188,2950.5,2950.4,0.70659103]
[1765851965774,1.9188,2950.5,2950.4,1.45699103]
[1765851965976,1.9188,2950.5,2950.4,0.00509103]
[1765851966471,1.9188,2950.5,2950.4,0.70659103]
[1765851967571,1.9188,2950.5,2950.4,0.00509103]
[1765851967974,0.436,2950.5,2950.4,1.45699103]
[1765851968270,1.92781833,2951.0,2950.9,0.7015]
[1765851968469,1.92781833,2951.0,2950.9,1.45481116]
[1765851968974,1.92781833,2951.0,2950.9,0.70441116]
[1765851969771,1.19261833,2951.0,2950.9,1.45481116]
[1765851970372,0.00901833,2951.0,2950.9,1.45481116]
[1765851972669,0.00901833,2951.0,2950.9,4.03673923]
[1765851975363,0.436,2951.5,2950.9,4.03673923]
[1765851975364,0.7352,2951.5,2951.4,1.4519]
[1765851975569,0.7352,2951.5,2951.4,4.03382807]
[1765851976376,0.7377025,2951.5,2951.4,4.03382807]
[1765851977374,0.0025025,2951.5,2951.4,4.03382807]
[1765851977578,0.18335336,2952.0,2951.9,1.4519]
[1765851978574,0.18766805,2952.0,2951.9,1.4519]
[1765851979070,1.80014944,2953.6,2953.5,1.4519]
[1765851979267,0.26784818,2953.9,2953.8,1.4519]
[1765851979472,0.436,2955.0,2954.4,1.4519]
[1765851979977,0.436,2955.5,2954.4,1.4519]
[1765851979978,1.1836,2955.5,2955.4,0.7015]
[1765851980171,1.92278673,2955.5,2955.4,0.00348434]
[1765851980571,0.00398673,2955.5,2955.4,1.45538434]
[1765851980775,0.436,2956.0,2955.4,1.45538434]
[1765851981172,1.1836,2956.0,2955.9,0.7015]
[1765851981372,0.436,2957.0,2955.9,0.7015]
[1765851981373,0.436,2957.0,2955.9,1.4519]
[1765851981875,0.43938895,2956.5,2955.9,1.4519]
[1765851982069,0.43938895,2956.5,2956.4,0.7015]
[1765851982275,0.436,2957.0,2955.5,0.2512]
[1765851982276,1.9188,2957.0,2956.3,2.58192807]
[1765851982672,1.9188,2957.0,2956.9,0.7015]
[1765851982673,0.436,2957.0,2956.9,0.7015]
[1765851982870,0.436,2957.0,2956.3,5.41192807]
[1765851982871,1.1836,2957.0,2954.0,0.2974]
[1765851983072,1.1836,2957.0,2955.5,4.83312807]
[1765851983374,1.18625888,2957.0,2956.0,2.58192807]
[1765851983780,1.18625888,2957.0,2956.1,4.35904312]
[1765851983968,1.18625888,2957.0,2956.1,7.00904312]
[1765851984168,0.43865888,2957.0,2956.9,0.7015]
[1765851984371,1.92145888,2957.0,2955.6,2.58192807]
[1765851984576,1.92145888,2957.0,2955.6,5.22192807]
[1765851984878,1.92145888,2957.0,2955.6,9.66430796]
[1765851985081,1.92145888,2957.0,2955.7,40.8]
[1765851985284,1.92145888,2957.0,2955.5,0.2512]
[1765851985473,1.92145888,2957.0,2955.5,2.8012]
[1765851985670,1.92145888,2957.0,2955.6,40.8]
[1765851986371,1.92145888,2957.0,2955.2,0.00508225]
[1765851986572,1.92145888,2957.0,2955.4,0.07348434]
[1765851986778,1.92145888,2957.0,2955.4,40.87348434]
[1765851987174,1.92145888,2957.0,2955.4,43.21348434]
[1765851987369,0.436,2955.5,2955.4,0.70498434]
[1765851987574,0.436,2955.5,2955.4,1.45538434]
[1765851988479,0.436,2956.0,2955.4,1.45538434]
[1765851989475,1.9188,2956.0,2955.4,0.00348434]
[1765851990784,1.9188,2956.0,2955.9,1.4519]
[1765851990785,0.436,2956.0,2955.9,1.4519]
[1765851991381,0.436,2956.5,2956.4,1.4519]
[1765851991771,1.1836,2956.5,2956.4,1.4519]
[1765851991971,1.1836,2956.5,2956.4,0.7015]
[1765851992170,0.43865888,2957.0,2956.4,1.4328]
[1765851992775,0.43865888,2957.0,2956.5,2.2649078]
[1765851993682,0.00265888,2957.0,2956.9,3.7093078]
[1765851994472,0.436,2958.0,2957.4,1.4444]
[1765851994675,0.436,2958.0,2957.4,3.71438111]
[1765851994880,0.436,2958.0,2957.8,2.2649078]
[1765851995080,0.436,2958.0,2957.9,0.7302]
[1765851995386,1.20079227,2958.0,2957.9,0.00425739]
[1765851995581,0.00399227,2958.0,2957.9,3.71356519]
[1765851995781,0.4278,2958.5,2958.4,0.7302]
[1765851995979,1.25027563,2959.1,2958.4,1.4444]
[1765851996178,0.60902281,2960.0,2958.3,2.2649078]
[1765851996179,1.1886,2959.0,2958.7,2.2649078]
[1765851996384,1.1886,2959.0,2958.3,2.2649078]
[1765851996578,1.1886,2959.0,2958.3,2.5149078]
[1765851996887,1.19195285,2959.0,2957.9,2.26916519]
[1765851997078,1.19195285,2959.0,2957.9,4.54916519]
[1765851997280,0.7608,2958.8,2958.7,2.2649078]
[1765851997480,0.43115285,2959.0,2958.7,2.9951078]
[1765851997982,0.00335285,2959.0,2958.9,1.4444]
[1765851998183,1.19195285,2959.0,2958.4,2.2649078]
[1765851998386,1.19195285,2959.0,2958.4,4.5849078]
[1765851998583,0.43115285,2959.0,2958.9,0.7302]
[1765851999089,0.43115285,2959.0,2958.9,1.4444]
[1765851999287,0.00335285,2959.0,2958.9,1.4444]
[1765851999690,0.60902281,2960.0,2959.4,1.4444]
[1765851999893,0.60902281,2960.0,2959.9,0.7302]
[1765852000185,0.18122281,2960.0,2959.9,1.4444]
[1765852000788,0.18402441,2960.0,2959.9,1.4444]
[1765852001290,0.61182441,2960.0,2959.4,2.26998111]
[1765852001485,0.61182441,2960.0,2959.4,0.00507331]
[1765852001686,1.9437,2959.5,2959.4,0.00507331]
[1765852002490,1.1886,2959.5,2959.4,0.00507331]
[1765852002696,7.9437,2959.5,2958.0,43.0649078]
[1765852002896,1.9437,2959.5,2958.4,2.2649078]
[1765852003194,1.9437,2959.5,2958.4,2.3049078]
[1765852003796,0.00501419,2959.2,2958.7,0.00507331]
[1765852004101,3.2078,2959.1,2958.7,0.00507331]
[1765852004302,0.7608,2958.8,2958.7,0.00507331]
[1765852004501,3.2078,2959.1,2958.7,0.73527331]
[1765852004799,1.5159,2958.5,2958.4,3.2078]
[1765852004996,4.7237,2958.5,2957.9,0.00425739]
[1765852005194,3.2078,2958.1,2958.0,1.4444]
[1765852005396,0.4278,2958.6,2958.0,3.7093078]
[1765852005595,0.4278,2958.6,2958.5,0.7302]
[1765852005798,3.21281419,2959.2,2958.5,1.4444]
[1765852006202,3.21281419,2959.2,2958.5,4.6522]
[1765852006394,0.00501419,2959.2,2958.5,4.6522]
[1765852006594,0.00501419,2959.2,2959.1,1.4444]
[1765852006801,0.76581419,2959.2,2958.8,3.2078]
[1765852008398,0.90926261,2959.1,2958.8,3.2078]
[1765852008604,0.90926261,2959.0,2958.8,3.2078]
[1765852008802,0.7608,2958.9,2958.8,3.2078]
[1765852009007,0.9177162,2958.9,2958.8,0.7302]
[1765852009401,0.9177162,2958.9,2958.8,1.4444]
[1765852009600,0.00501419,2959.2,2959.1,0.7302]
[1765852009795,0.92396071,2959.2,2959.1,1.4444]
[1765852011407,0.92426358,2959.2,2959.1,1.4444]
[1765852012100,1.5159,2959.1,2958.6,3.2078]
[1765852012296,0.91924939,2959.0,2958.6,3.2078]
[1765852012501,0.43281419,2959.2,2959.1,0.7302]
[1765852012710,1.35211004,2959.2,2959.1,0.7302]
[1765852013404,0.92431004,2959.2,2959.1,1.4444]
[1765852013597,0.92431004,2959.2,2959.1,0.7302]
[1765852014203,1.68511004,2959.2,2958.9,3.2078]
[1765852014403,1.68511004,2959.2,2958.5,2.2649078]
[1765852014404,0.91929585,2959.1,2958.6,3.2078]
[1765852014610,0.91929585,2959.0,2958.9,1.4444]
[1765852015002,0.00501419,2959.2,2959.1,0.7302]
[1765852015307,0.92442228,2959.2,2959.1,0.7302]
[1765852015702,0.7608,2958.8,2958.6,3.2078]
[1765852015907,0.76581419,2959.2,2959.1,0.7302]
[1765852016103,1.68559335,2959.2,2959.1,0.7302]
[1765852016705,1.68559335,2959.2,2958.6,3.2078]
[1765852016905,0.7608,2958.7,2958.6,3.2078]
[1765852017107,0.7608,2958.7,2958.6,3.938]
[1765852018417,0.92202719,2958.7,2958.6,4.6522]
[1765852018807,2.43792719,2958.7,2958.6,3.2078]
[1765852020516,1.68282719,2958.7,2958.6,3.938]
[1765852021206,1.68282719,2958.7,2958.6,4.6522]
[1765852021413,0.92202719,2958.7,2958.6,4.6522]
[1765852022413,0.00501419,2959.2,2959.1,1.4563]
[1765852023516,1.47211419,2959.2,2958.6,3.2078]
[1765852023710,5.60799925,2959.6,2959.1,2.4338978]
[1765852023913,0.18402441,2960.0,2959.9,1.4563]
[1765852024215,0.18402441,2960.0,2959.9,3.7212078]
[1765852024918,1.4671,2959.9,2959.8,3.2078]
[1765852025320,0.18402441,2960.0,2959.9,1.4563]
[1765852025818,6.0,2959.9,2959.2,1.4563]
[1765852026016,0.16898,2959.3,2958.6,3.9353]
[1765852026211,2.4241595,2958.8,2958.5,0.4489]
[1765852026412,2.4241595,2958.9,2958.8,0.7288]
[1765852026611,5.6319595,2958.9,2958.8,1.4563]
[1765852026809,3.18222404,2958.9,2958.5,0.4489]
[1765852027408,2.42402404,2958.9,2958.7,0.7275]
[1765852028621,2.42402404,2959.1,2959.0,1.1764]
[1765852029015,3.18222404,2959.1,2959.0,1.1764]
[1765852029523,2.42402404,2959.2,2959.1,0.7275]
[1765852029822,0.7582,2959.1,2959.0,0.4489]
[1765852030319,1.4671,2959.1,2959.0,0.4489]
[1765852030622,3.89112404,2959.1,2958.5,0.4489]
[1765852030816,3.89112404,2959.1,2958.5,3.9467]
[1765852032021,3.2078,2959.2,2959.1,1.4563]
[1765852032226,4.20034869,2959.8,2959.0,0.4489]
[1765852032227,2.42402404,2959.6,2959.5,1.9052]
[1765852032412,3.2078,2959.8,2959.6,1.4563]
[1765852032620,2.42402404,2959.9,2959.8,1.4563]
[1765852032928,0.00507331,2960.2,2959.9,1.4563]
[1765852033422,2.441e-05,2960.0,2959.9,3.7212078]
[1765852033619,3.2078,2960.7,2960.5,0.4489]
[1765852033924,3.2078,2960.7,2960.6,1.4563]
[1765852034314,0.87022844,2960.7,2960.6,1.4563]
[1765852034715,2.42402404,2961.5,2961.4,0.7275]
[1765852034914,2.34085192,2961.5,2961.4,0.00237449]
[1765852035324,0.87375192,2961.5,2961.4,1.45867449]
[1765852035525,0.00359576,2961.5,2961.4,1.45867449]
[1765852035921,0.00359576,2961.5,2961.4,0.72987449]
[1765852036121,1.47069576,2961.5,2961.4,0.00237449]
[1765852036430,0.00359576,2961.5,2961.4,1.45867449]
[1765852036619,1.47069576,2961.5,2961.4,0.00237449]
[1765852037615,0.00359576,2961.5,2961.4,1.45867449]
[1765852037822,0.76179576,2961.5,2961.4,0.72987449]
[1765852038625,0.00359576,2961.5,2961.4,4.66647449]
[1765852038827,0.00359576,2961.5,2961.4,1.45867449]
[1765852039330,0.7582,2962.2,2961.5,0.4489]
[1765852039527,0.7582,2961.9,2961.5,0.4489]
[1765852039828,0.7582,2961.9,2961.4,0.00237449]
[1765852040228,0.00278528,2961.9,2961.4,0.72987449]
[1765852040435,0.00278528,2961.9,2961.8,0.7275]
[1765852040636,0.00278528,2961.9,2961.8,1.4563]
[1765852041525,3.2078,2963.0,2962.6,1.4563]
[1765852041726,4.6749,2963.0,2962.5,0.4489]
[1765852041928,4.6749,2963.0,2962.3,3.2078]
[1765852042129,3.2078,2963.0,2962.9,1.4563]
[1765852042333,0.4463,2964.5,2963.3,1.4563]
[1765852042334,3.2078,2963.7,2963.3,1.4563]
[1765852042526,0.00257583,2963.7,2963.4,0.3393]
[1765852043233,1.46967583,2963.7,2963.2,0.00506448]
[1765852043829,0.00257583,2963.7,2963.6,1.4563]
[1765852044031,0.00257583,2963.7,2963.6,1.45918016]
[1765852044333,3.2078,2964.9,2964.0,0.3928]
[1765852044522,0.4006,2965.2,2964.0,0.3928]
[1765852044523,3.2078,2964.6,2964.0,0.3928]
[1765852044723,3.2078,2964.9,2964.0,0.3928]
[1765852044928,3.2078,2964.4,2963.6,12.12388016]
[1765852045434,3.2078,2964.4,2964.3,0.7275]
[1765852045435,3.211857,2964.4,2964.3,0.7275]
[1765852045936,3.970057,2964.4,2963.6,0.00288016]
[1765852046133,3.2078,2964.1,2963.6,0.00288016]
[1765852046328,3.211857,2964.4,2963.6,0.00288016]
[1765852046724,0.7582,2963.7,2963.6,0.00288016]
[1765852047337,1.4671,2963.7,2963.6,0.00288016]
[1765852048130,1.4671,2963.3,2963.2,0.00506448]
[1765852048433,1.4671,2963.0,2962.1,3.2078]
[1765852048630,3.2078,2963.4,2962.8,1.9052]
[1765852048829,3.2078,2963.7,2963.6,0.7275]
[1765852049133,3.2078,2963.7,2963.6,1.45894184]
[1765852049733,0.00503508,2963.9,2963.6,1.45894184]
[1765852050232,0.00503508,2963.9,2963.8,0.7275]
[1765852050833,0.76323508,2963.9,2963.6,0.00264184]
[1765852051328,1.4671,2963.7,2963.6,0.00264184]
[1765852052133,0.7582,2963.7,2963.6,0.00264184]
[1765852052337,3.966,2963.7,2963.6,0.00264184]
[1765852053231,1.4564,2963.5,2963.4,0.00506448]
[1765852053436,0.4261,2963.4,2962.7,3.2078]
[1765852053632,3.6339,2963.4,2962.7,3.2078]
[1765852053831,3.2078,2963.4,2962.6,3.2078]
[1765852054037,3.2078,2963.7,2963.3,0.7146]
[1765852054336,3.2078,2963.4,2963.3,0.71840144]
[1765852054536,3.9142,2963.4,2963.3,0.00380144]
[1765852054831,3.2078,2963.4,2963.3,1.46460144]
[1765852055431,3.2078,2963.8,2963.7,1.4608]
[1765852056634,3.9142,2963.8,2963.4,0.4222]
[1765852056838,3.9142,2963.8,2963.3,0.00380144]
[1765852057037,3.9142,2963.8,2963.7,1.4608]
[1765852057038,3.2078,2963.8,2963.7,1.4608]
[1765852058928,0.00503508,2963.9,2963.8,1.4608]
[1765852059446,3.211857,2964.4,2964.3,1.4608]
[1765852060341,0.004057,2964.4,2964.3,1.4608]
[1765852061635,0.16863,2965.3,2964.3,1.4608]
[1765852061636,3.6339,2965.8,2965.0,0.4222]
[1765852061839,3.2078,2965.8,2965.4,0.7146]
[1765852062338,0.7064,2965.5,2965.4,0.7146]
[1765852062640,5.0939488,2965.5,2965.4,0.00373389]
[1765852063132,3.2114488,2965.5,2965.4,0.00373389]
[1765852063338,3.9178488,2965.5,2965.4,0.71833389]
[1765852063540,3.9178488,2965.5,2965.4,0.00373389]
[1765852063745,4.6678488,2965.5,2965.4,0.00373389]
[1765852063938,3.9178488,2965.5,2965.4,0.00373389]
[1765852064338,3.2114488,2965.5,2965.4,1.46453389]
[1765852064542,0.0036488,2965.5,2965.4,1.46453389]
[1765852064741,3.2078,2966.0,2965.9,1.4608]
[1765852065041,3.2078,2966.4,2966.3,1.4608]
[1765852065241,3.2078,2966.4,2966.3,0.7146]
[1765852065539,3.2078,2966.7,2966.3,0.7146]
[1765852065740,5.0903,2966.4,2965.4,0.00373389]
[1765852066057,3.2078,2965.6,2965.4,0.00373389]
[1765852066249,3.2078,2966.2,2965.5,1.4608]
[1765852066542,3.2078,2966.2,2965.5,5.77493725]
[1765852066753,3.2078,2966.2,2965.5,1.4608]
[1765852067648,1.4564,2965.5,2965.4,0.00373389]
[1765852068351,0.7064,2965.5,2965.4,0.00373389]
[1765852068853,3.2078,2965.9,2965.4,0.00373389]
[1765852069245,3.2078,2966.2,2965.4,0.00373389]
[1765852070146,0.7064,2965.3,2965.2,0.00506448]
[1765852070342,1.4564,2965.3,2965.2,0.00506448]
[1765852070543,3.2078,2965.6,2965.2,0.00506448]
[1765852070744,1.4564,2965.3,2965.2,0.00506448]
[1765852070945,1.4564,2964.8,2963.7,0.16872]
[1765852071151,3.2078,2965.0,2964.0,1.77649019]
[1765852071454,0.83753665,2965.1,2964.2,3.2078]
[1765852071653,0.83753665,2965.1,2964.2,5.8978]
[1765852071950,3.9142,2964.6,2964.4,0.00506448]
[1765852072155,3.91671036,2964.6,2964.4,0.00506448]
[1765852072353,1.4564,2964.5,2964.4,0.00506448]
[1765852072550,1.4564,2964.5,2964.4,1e-08]
[1765852072849,1.4564,2964.1,2964.0,0.00429019]
[1765852073053,0.83753665,2964.5,2964.0,0.00429019]
[1765852073448,1.4564,2964.1,2964.0,0.00429019]
[1765852074456,0.83753665,2964.5,2964.0,0.00429019]
[1765852074655,0.83753665,2964.4,2964.0,0.00429019]
[1765852074859,0.83753665,2964.3,2964.0,0.00429019]
[1765852075060,0.83753665,2964.2,2964.0,0.00429019]
[1765852075261,3.2078,2964.3,2964.0,0.00429019]
[1765852075557,1.4564,2963.9,2963.8,0.00506448]
[1765852075952,1.4564,2963.9,2963.3,3.2078]
[1765852076455,1.4564,2963.9,2963.3,3.2109565]
[1765852077059,1.4564,2963.9,2963.3,3.21602098]
[1765852077557,3.2078,2964.3,2963.4,0.4222]
[1765852077859,4.04533665,2964.3,2963.4,0.4222]
[1765852078057,1.036e-05,2964.6,2964.5,0.16868]
[1765852078257,0.4261,2965.8,2964.7,2.55565286]
[1765852078258,3.6339,2965.8,2964.7,2.55565286]
[1765852078456,0.4261,2965.8,2964.9,0.16865]
[1765852078656,0.4261,2965.8,2965.6,3.2078]
[1765852079154,1.4564,2965.7,2965.6,3.21113461]
[1765852079358,0.42895769,2965.8,2965.6,0.00333461]
[1765852079660,0.42895769,2965.8,2965.7,3.2078]
[1765852079849,0.7064,2965.7,2965.6,0.00333461]
[1765852080661,1.4564,2965.7,2965.6,0.00333461]
[1765852084460,1.4564,2965.7,2963.7,3.2078]
[1765852084461,0.7273,2964.5,2963.7,3.2078]
[1765852084657,0.7273,2964.5,2963.7,4.7678]
[1765852085361,0.00506448,2964.4,2963.8,0.00506448]
[1765852085559,3.2078,2964.3,2963.8,0.00506448]
[1765852085861,0.00506448,2964.4,2963.8,0.00506448]
[1765852087857,1.4668,2963.9,2963.8,0.00506448]
[1765852090464,3.2078,2964.0,2963.9,0.777]
[1765852090665,0.00506448,2964.4,2963.9,0.777]
[1765852091461,0.00506448,2964.4,2963.8,0.00506448]
[1765852091662,1.4668,2963.9,2963.8,0.00506448]
[1765852092265,0.00506448,2964.4,2963.8,0.00506448]
[1765852093163,1.4668,2963.9,2963.8,0.00506448]
[1765852094573,1.4668,2963.9,2963.7,0.00327173]
[1765852094574,1.4668,2963.8,2963.0,3.2078]
[1765852094769,3.2078,2964.2,2963.7,0.777]
[1765852095468,3.2078,2964.2,2963.7,0.78476151]
[1765852095676,1.4668,2963.8,2963.7,0.00776151]
[1765852095879,0.00506448,2964.4,2963.7,0.78476151]
[1765852097675,3.2078,2964.2,2963.7,0.78476151]
[1765852099571,3.2078,2964.2,2964.1,0.777]
[1765852100177,4.6746,2964.2,2963.7,0.00776151]
[1765852101677,3.2078,2964.2,2964.1,0.777]
[1765852101881,0.00506448,2964.4,2964.1,1.5103]
[1765852102181,0.00506448,2964.4,2964.3,1.5103]
[1765852102378,2.4248,2966.4,2964.5,0.4126]
[1765852102379,3.2078,2965.3,2964.5,0.4126]
[1765852102578,0.4368,2965.5,2965.0,3.2078]
[1765852102970,0.4368,2965.5,2965.1,40.8]
[1765852103374,0.4368,2965.5,2965.3,3.2078]
[1765852104383,0.4368,2965.5,2965.4,5.21306]
[1765852107582,0.00506448,2965.6,2965.5,0.716]
[1765852108088,1e-08,2965.6,2965.5,24.1120686]
[1765852109187,1e-08,2965.6,2965.5,22.4520686]
[1765852109488,1e-08,2965.6,2965.5,29.9020686]
[1765852109686,3.2078,2966.5,2966.3,0.3223]
[1765852109882,3.2078,2966.5,2966.3,0.6446]
[1765852110087,1.9036,2966.4,2966.0,3.2078]
[1765852110282,1.4668,2966.2,2966.1,40.8]
[1765852110483,1.4668,2966.1,2966.0,3.2078]
[1765852110785,1.46968661,2966.1,2966.0,2.88002013]
[1765852111089,1.46968661,2966.1,2966.0,2.013e-05]